bitfinex-derivatives/quotes_SOLF0:USTF0_20241222
["timestamp","ask_amount","ask_price","bid_price","bid_amount"]
[1734897991521,1.41112143,177.38,177.32,2.8221]
[1734897991722,2.8216,177.36,177.32,2.8221]
[1734897992141,2.8213,177.38,177.33,2.8218]
[1734897992328,1.41111229,177.37,177.29,4.9467]
[1734897992529,1.41111229,177.36,177.29,4.9467]
[1734897992729,2.8219,177.34,177.3,2.8224]
[1734897992924,1.41129164,177.33,177.29,1.6932]
[1734897993133,3.84,177.39,177.29,1.6932]
[1734897993434,1.41128204,177.38,177.31,2.8223]
[1734897993756,1.41128204,177.37,177.31,2.8223]
[1734897993930,2.8218,177.35,177.31,2.8223]
[1734897994133,1.41128204,177.34,177.31,2.8223]
[1734897994335,1.41128204,177.33,177.29,4.5156]
[1734897994537,1.41128204,177.32,177.29,4.5156]
[1734897995235,1.41128204,177.32,177.29,2.8224]
[1734897995924,2.822,177.33,177.29,2.8224]
[1734897996127,1.41141283,177.32,177.29,2.8224]
[1734897996327,2.822,177.33,177.29,2.8224]
[1734897996526,1.41141283,177.32,177.29,2.8224]
[1734897996731,3.84,177.39,177.25,5.0227]
[1734897996928,1.41138554,177.38,177.25,5.0227]
[1734897997146,1.41138554,177.37,177.25,5.0227]
[1734897997339,1.41138554,177.36,177.25,5.0227]
[1734897997638,1.41138554,177.35,177.25,5.0227]
[1734897997834,1.41138554,177.34,177.25,5.0227]
[1734897998034,2.8215,177.36,177.25,5.0227]
[1734897998229,1.41120353,177.35,177.25,5.0227]
[1734897998432,1.41120353,177.34,177.31,2.8221]
[1734897998631,2.8219,177.34,177.25,5.0227]
[1734897998836,1.41129061,177.33,177.25,5.0227]
[1734897999036,25.84541313,177.4,177.31,2.8222]
[1734897999243,1.41129556,177.39,177.31,2.8222]
[1734897999539,2.8215,177.36,177.31,2.8222]
[1734897999742,1.41129556,177.35,177.31,2.8222]
[1734898000630,1.41129556,177.35,177.32,2.822]
[1734898001638,3.94,177.46,177.31,3.94]
[1734898001933,3.4925,177.48,177.33,22.00541313]
[1734898002139,3.4925,177.48,177.41,2.8206]
[1734898002641,2.8199,177.46,177.38,3.94]
[1734898002840,2.8199,177.46,177.39,1.6229]
[1734898003037,25.49791313,177.52,177.39,1.6229]
[1734898004135,2.8195,177.49,177.39,1.6229]
[1734898005129,2.8195,177.49,177.44,2.8201]
[1734898005436,2.8195,177.49,177.39,1.6229]
[1734898005630,22.00541313,177.55,177.39,23.62831313]
[1734898005833,25.94541313,177.55,177.45,2.8199]
[1734898006029,25.94541313,177.55,177.39,23.62831313]
[1734898006232,2.8192,177.51,177.39,23.62831313]
[1734898006738,25.94541313,177.55,177.39,23.62831313]
[1734898007332,22.00541313,177.52,177.4,3.94]
[1734898007736,22.00541313,177.52,177.39,1.6229]
[1734898007937,22.00541313,177.49,177.36,3.94]
[1734898008140,9.0457,177.48,177.36,3.94]
[1734898008338,9.0457,177.48,177.39,2.8208]
[1734898008339,2.8202,177.44,177.39,2.8208]
[1734898008636,9.0457,177.48,177.39,2.8208]
[1734898008938,9.0457,177.48,177.38,2.8211]
[1734898009144,13.27783953,177.48,177.34,7.2096]
[1734898009341,24.51921702,177.48,177.34,7.2096]
[1734898009641,24.51921702,177.48,177.38,2.8211]
[1734898009837,33.21984595,177.48,177.38,2.8211]
[1734898010043,4.23213953,177.47,177.38,2.8211]
[1734898010343,33.22953417,177.48,177.38,2.8211]
[1734898010537,2.8206,177.42,177.38,2.8211]
[1734898010837,3.94,177.42,177.31,1.6982]
[1734898011137,2.8215,177.36,177.31,1.6982]
[1734898011435,3.94,177.42,177.31,1.6982]
[1734898011735,2.821,177.39,177.31,1.6982]
[1734898011940,3.94,177.42,177.31,1.6982]
[1734898012335,2.821,177.4,177.35,2.8216]
[1734898012640,3.94,177.42,177.35,2.8216]
[1734898012846,2.821,177.39,177.35,2.8216]
[1734898013143,3.94,177.42,177.31,1.6982]
[1734898013538,2.821,177.39,177.31,1.6982]
[1734898013734,1.41089168,177.38,177.31,1.6982]
[1734898013941,1.41089168,177.37,177.31,1.6982]
[1734898014137,1.41089168,177.36,177.31,1.6982]
[1734898014341,1.41089168,177.35,177.31,1.6982]
[1734898014538,1.41089168,177.34,177.31,1.6982]
[1734898014845,2.8214,177.37,177.31,5.6382]
[1734898015043,1.41099814,177.36,177.31,5.6382]
[1734898015245,1.41099814,177.35,177.31,5.6382]
[1734898015549,1.41099814,177.34,177.25,3.344]
[1734898015742,1.41099814,177.33,177.26,35.72731002]
[1734898015942,1.41099814,177.32,177.26,35.72731002]
[1734898016138,1.41099814,177.31,177.28,2.8226]
[1734898016343,1.41099814,177.3,177.25,3.344]
[1734898016544,1.41099814,177.29,177.25,3.344]
[1734898016845,3.94,177.38,177.23,0.30434]
[1734898017143,3.94,177.38,177.27,35.72731002]
[1734898017144,1.41120673,177.37,177.27,35.72731002]
[1734898017346,3.94,177.38,177.24,3.94]
[1734898017347,1.41120673,177.36,177.24,3.94]
[1734898017546,1.41120673,177.35,177.24,39.66731002]
[1734898017743,3.94,177.38,177.24,39.66731002]
[1734898017744,1.41120673,177.34,177.27,35.72731002]
[1734898018049,3.94,177.42,177.3,35.72731002]
[1734898018244,3.94,177.42,177.31,5.6996]
[1734898019343,2.8211,177.39,177.34,2.8218]
[1734898019543,2.8211,177.39,177.31,5.6996]
[1734898019942,2.8211,177.39,177.34,2.8217]
[1734898020147,3.94,177.42,177.31,5.6996]
[1734898020556,3.94,177.42,177.31,1.7596]
[1734898020849,2.8216,177.35,177.28,3.3667]
[1734898021051,39.66731002,177.42,177.29,2.8226]
[1734898021347,2.822,177.33,177.28,1.7533]
[1734898021548,15.49040739,177.41,177.28,1.7533]
[1734898021748,1.6892,177.4,177.28,1.7533]
[1734898022149,2.8218,177.35,177.28,1.7533]
[1734898022652,2.8218,177.35,177.3,2.8223]
[1734898022851,2.8218,177.35,177.28,1.7533]
[1734898023053,2.8218,177.35,177.3,2.8223]
[1734898023449,2.8218,177.35,177.28,1.7533]
[1734898023852,2.8219,177.34,177.3,2.8224]
[1734898024451,1.6892,177.4,177.28,1.7533]
[1734898024652,2.822,177.33,177.29,2.8225]
[1734898024854,3.94,177.36,177.24,1.6308]
[1734898025059,1.6144,177.35,177.22,39.66731002]
[1734898025249,1.6144,177.35,177.23,1.96514]
[1734898025553,2.822,177.33,177.28,2.8226]
[1734898025754,3.94,177.36,177.25,35.72731002]
[1734898026055,1.6992,177.38,177.25,35.72731002]
[1734898026348,2.8217,177.35,177.25,35.72731002]
[1734898026756,2.8217,177.35,177.3,2.8223]
[1734898027661,1.6992,177.38,177.25,35.72731002]
[1734898028149,2.8218,177.34,177.29,2.8224]
[1734898028555,1.6992,177.38,177.25,39.66731002]
[1734898029256,3.3022,177.38,177.25,39.66731002]
[1734898029457,3.3022,177.38,177.25,35.72731002]
[1734898030559,2.8218,177.35,177.29,2.8226]
[1734898030759,3.3022,177.38,177.29,2.8226]
[1734898031255,2.8219,177.34,177.29,2.8226]
[1734898031450,2.8219,177.34,177.3,2.8224]
[1734898031649,3.3022,177.38,177.25,35.72731002]
[1734898032055,3.3022,177.38,177.32,2.822]
[1734898032561,1.6892,177.4,177.29,3.88]
[1734898033055,2.8212,177.38,177.29,3.88]
[1734898033359,22.00112651,177.45,177.29,25.88112651]
[1734898033553,11.24573736,177.46,177.32,22.00112651]
[1734898033750,20.08303736,177.47,177.33,1.624]
[1734898033956,20.08303736,177.47,177.38,2.8211]
[1734898034157,2.8205,177.43,177.38,2.8211]
[1734898034764,2.8205,177.43,177.33,1.624]
[1734898035062,13.06991427,177.47,177.33,1.624]
[1734898035363,24.31443717,177.47,177.33,1.624]
[1734898035562,2.8207,177.41,177.37,2.8213]
[1734898036359,2.8202,177.44,177.37,2.8213]
[1734898036563,24.31443717,177.47,177.37,2.8213]
[1734898036763,24.31443717,177.47,177.33,1.624]
[1734898037069,2.8205,177.43,177.33,1.624]
[1734898037261,24.31443717,177.47,177.33,1.624]
[1734898037461,33.01797101,177.47,177.37,2.8212]
[1734898037663,2.8206,177.42,177.33,1.624]
[1734898038271,2.8206,177.42,177.38,2.821]
[1734898038469,2.8203,177.44,177.35,3.88]
[1734898038670,8.8373,177.47,177.35,3.88]
[1734898038965,2.8203,177.44,177.39,2.8208]
[1734898039469,8.8373,177.47,177.35,3.88]
[1734898039672,2.8205,177.43,177.38,2.8211]
[1734898040370,2.8202,177.44,177.4,2.8208]
[1734898040963,2.8201,177.45,177.41,2.8207]
[1734898041168,22.00112651,177.51,177.35,25.88112651]
[1734898041370,25.88112651,177.51,177.35,25.88112651]
[1734898041569,2.8199,177.46,177.42,2.8204]
[1734898042173,22.00112651,177.48,177.34,1.6316]
[1734898042774,22.00112651,177.45,177.33,1.624]
[1734898043067,3.88,177.44,177.33,1.624]
[1734898043768,2.8205,177.42,177.38,2.821]
[1734898046476,2.8204,177.43,177.34,1.7523]
[1734898046979,2.8204,177.43,177.38,2.821]
[1734898047175,2.8208,177.41,177.33,3.88]
[1734898047577,2.8208,177.41,177.37,2.8212]
[1734898047778,3.88,177.44,177.31,3.4712]
[1734898048177,3.88,177.44,177.34,2.8218]
[1734898048373,2.8209,177.4,177.29,22.00112651]
[1734898048578,19.34828728,177.44,177.29,22.00112651]
[1734898049181,19.34828728,177.44,177.33,2.8219]
[1734898049679,22.00112651,177.42,177.26,22.00112651]
[1734898049884,22.00112651,177.42,177.3,0.24363]
[1734898050084,46.16420025,177.42,177.3,0.24363]
[1734898050384,2.8218,177.34,177.3,3.06603]
[1734898050584,4.23304099,177.41,177.3,3.06603]
[1734898050585,3.88,177.38,177.3,0.24363]
[1734898051879,5.0519,177.4,177.3,0.24363]
[1734898052081,3.88,177.46,177.31,3.88]
[1734898052285,1.6498,177.45,177.31,3.88]
[1734898052482,1.6498,177.45,177.36,2.8214]
[1734898052676,5.88278703,177.45,177.32,25.31432651]
[1734898052882,5.88278703,177.45,177.32,26.98642651]
[1734898053180,1.6498,177.45,177.32,26.98642651]
[1734898053386,2.8207,177.41,177.36,2.8213]
[1734898053584,1.6498,177.45,177.36,2.8213]
[1734898053785,5.88278703,177.45,177.36,2.8213]
[1734898053986,2.8205,177.43,177.36,2.8213]
[1734898054187,5.88278703,177.45,177.36,2.8213]
[1734898054689,2.8208,177.41,177.34,2.8217]
[1734898054877,2.8208,177.41,177.32,26.98642651]
[1734898056084,2.8211,177.39,177.32,26.98642651]
[1734898056282,4.23262467,177.45,177.32,4.9853]
[1734898056482,28.08330997,177.46,177.32,4.9853]
[1734898056883,2.8211,177.39,177.34,2.8217]
[1734898057086,22.00112651,177.44,177.32,1.6787]
[1734898057384,2.8216,177.36,177.32,2.8221]
[1734898057578,3.88,177.4,177.3,0.24363]
[1734898058890,2.8218,177.35,177.3,3.06593]
[1734898059189,3.88,177.4,177.3,0.24363]
[1734898059388,3.362,177.39,177.3,0.24363]
[1734898059990,7.59462467,177.39,177.3,0.24363]
[1734898060184,3.72,177.38,177.3,0.24363]
[1734898060893,2.8219,177.34,177.3,3.06603]
[1734898061593,2.822,177.33,177.3,0.24363]
[1734898064390,2.8218,177.34,177.3,3.06603]
[1734898064693,7.082,177.39,177.3,0.24363]
[1734898065285,2.8214,177.37,177.3,3.06603]
[1734898065486,7.082,177.39,177.3,3.06603]
[1734898065986,2.8217,177.35,177.31,2.8221]
[1734898066387,7.082,177.39,177.3,0.24363]
[1734898067399,2.822,177.33,177.3,0.24363]
[1734898067890,2.822,177.33,177.3,3.06603]
[1734898069201,2.822,177.33,177.3,0.24363]
[1734898070601,2.822,177.33,177.29,2.8225]
[1734898071399,7.082,177.39,177.25,25.72112651]
[1734898071600,2.8221,177.32,177.25,25.72112651]
[1734898072193,22.00112651,177.38,177.24,5.0985]
[1734898072602,37.49482104,177.38,177.24,5.0985]
[1734898072803,33.26041229,177.38,177.24,5.0985]
[1734898073001,7.082,177.39,177.24,5.0985]
[1734898073302,2.8224,177.3,177.27,2.8227]
[1734898073497,2.8224,177.3,177.24,8.8185]
[1734898074303,7.082,177.39,177.24,8.8185]
[1734898074505,2.8223,177.31,177.24,8.8185]
[1734898075207,2.8224,177.3,177.26,2.8231]
[1734898075601,3.72,177.34,177.24,8.8185]
[1734898075900,3.72,177.34,177.24,6.2111]
[1734898076206,3.72,177.34,177.22,22.00112651]
[1734898076602,1.7601,177.33,177.2,0.29514]
[1734898076797,2.8232,177.26,177.22,2.8236]
[1734898077298,3.4529,177.32,177.2,0.29514]
[1734898077299,2.823,177.27,177.2,0.29514]
[1734898077494,25.45402651,177.32,177.2,22.29626651]
[1734898077495,7.1729,177.32,177.2,22.29626651]
[1734898077694,3.4529,177.32,177.23,22.00112651]
[1734898077899,2.8225,177.3,177.25,2.8231]
[1734898078096,3.4529,177.32,177.23,22.00112651]
[1734898078305,3.4529,177.32,177.21,5.1374]
[1734898078516,2.8228,177.28,177.21,5.1374]
[1734898078811,3.4529,177.32,177.21,5.1374]
[1734898079310,3.4529,177.32,177.2,26.01626651]
[1734898079704,2.8229,177.27,177.2,26.01626651]
[1734898080317,2.8232,177.26,177.22,2.8237]
[1734898080814,2.8235,177.24,177.2,3.11904]
[1734898081209,3.72,177.28,177.2,0.29514]
[1734898083214,2.8236,177.23,177.2,0.29514]
[1734898083417,2.8236,177.23,177.2,3.11914]
[1734898085709,2.8233,177.25,177.21,2.8238]
[1734898085916,3.72,177.29,177.21,2.8238]
[1734898086615,3.72,177.29,177.2,0.29514]
[1734898086816,13.76511939,177.28,177.2,0.29514]
[1734898087115,2.8232,177.25,177.2,0.29514]
[1734898087616,2.8237,177.23,177.2,0.29514]
[1734898087812,13.76511939,177.29,177.2,0.29514]
[1734898088004,3.72,177.31,177.2,14.06025939]
[1734898088410,1.6993,177.32,177.23,13.76511939]
[1734898088612,1.7601,177.33,177.23,13.76511939]
[1734898088816,2.8225,177.3,177.23,13.76511939]
[1734898089011,5.3193,177.37,177.24,3.62]
[1734898089317,5.3193,177.37,177.29,13.76511939]
[1734898089509,5.3193,177.37,177.24,3.62]
[1734898089716,5.3193,177.37,177.24,17.38511939]
[1734898089915,5.3193,177.37,177.24,20.20841939]
[1734898090511,5.3193,177.37,177.24,17.38511939]
[1734898091315,2.8225,177.3,177.24,20.20851939]
[1734898092116,2.8225,177.3,177.25,2.8232]
[1734898092313,5.3193,177.37,177.27,13.76511939]
[1734898092623,6.9498,177.4,177.3,13.76511939]
[1734898092831,2.8221,177.33,177.3,13.76511939]
[1734898093320,6.9498,177.4,177.3,13.76511939]
[1734898093519,3.62,177.39,177.3,16.58751939]
[1734898094216,2.8217,177.35,177.31,2.8223]
[1734898094416,17.38511939,177.39,177.27,13.76511939]
[1734898095121,2.8215,177.37,177.27,13.76511939]
[1734898095318,11.1550409,177.41,177.3,16.58751939]
[1734898095518,6.9207,177.41,177.3,16.58751939]
[1734898095717,2.8221,177.32,177.28,3.62]
[1734898095918,19.84881761,177.41,177.3,13.76511939]
[1734898096118,89.34996268,177.42,177.3,13.76511939]
[1734898096418,2.8212,177.38,177.33,13.76511939]
[1734898097015,13.76511939,177.45,177.33,17.38511939]
[1734898097319,4.23308246,177.47,177.36,13.76511939]
[1734898097519,2.8205,177.43,177.37,2.8212]
[1734898097723,2.8205,177.43,177.38,3.62]
[1734898098014,2.8205,177.43,177.38,6.4411]
[1734898098420,17.99776605,177.48,177.38,3.62]
[1734898098722,13.76511939,177.45,177.34,3.62]
[1734898098920,1.6186,177.44,177.33,13.76511939]
[1734898099111,2.8215,177.37,177.33,17.38511939]
[1734898099514,2.8215,177.37,177.33,13.76511939]
[1734898099719,2.8215,177.37,177.33,17.38511939]
[1734898100120,1.6186,177.44,177.33,3.62]
[1734898100320,1.6186,177.44,177.32,25.60969092]
[1734898100809,1.6186,177.44,177.32,21.98969092]
[1734898101213,2.8214,177.37,177.32,21.98969092]
[1734898101515,2.8214,177.37,177.32,25.60969092]
[1734898102522,2.8214,177.37,177.32,28.43169092]
[1734898102819,3.3666,177.43,177.32,25.60969092]
[1734898103023,1.765,177.43,177.36,2.8215]
[1734898103222,1.765,177.43,177.32,21.98969092]
[1734898103418,1.6186,177.44,177.33,3.62]
[1734898103819,3.62,177.46,177.35,21.98969092]
[1734898104021,5.99764666,177.48,177.35,21.98969092]
[1734898104323,1.765,177.48,177.36,5.3233]
[1734898104524,8.70378522,177.49,177.41,21.98969092]
[1734898104727,11.77009022,177.52,177.42,5.3332]
[1734898104925,7.53818602,177.52,177.44,21.98969092]
[1734898105120,7.53818602,177.52,177.47,2.8196]
[1734898105317,158.16123351,177.56,177.47,2.8196]
[1734898105525,3.3927,177.56,177.46,3.62]
[1734898105727,1.6517,177.56,177.49,2.8194]
[1734898105924,1.6517,177.56,177.47,21.98969092]
[1734898105925,7.53818602,177.58,177.47,21.98969092]
[1734898106122,7.53818602,177.58,177.5,2.8192]
[1734898106329,7.53818602,177.58,177.51,3.62]
[1734898106521,7.53818602,177.58,177.53,21.98969092]
[1734898106827,6.92976907,177.65,177.53,21.98969092]
[1734898107220,3.273,177.66,177.57,2.818]
[1734898107625,3.273,177.66,177.53,21.98969092]
[1734898107926,0.90679835,177.65,177.52,1.7132]
[1734898108130,21.98969092,177.63,177.51,1.7265]
[1734898108326,21.98969092,177.6,177.46,3.88]
[1734898108934,1.6647,177.59,177.48,2.8194]
[1734898109231,21.98969092,177.57,177.42,21.98969092]
[1734898109529,1.7373,177.56,177.42,21.98969092]
[1734898110129,1.7373,177.56,177.42,25.86969092]
[1734898110130,3.3485,177.56,177.42,25.86969092]
[1734898110531,2.8193,177.5,177.44,2.8202]
[1734898110835,3.3485,177.56,177.44,2.8202]
[1734898111037,2.8194,177.49,177.44,2.8202]
[1734898111225,3.3485,177.56,177.41,1.7588]
[1734898111226,3.88,177.52,177.41,1.7588]
[1734898111529,2.8201,177.45,177.38,21.98969092]
[1734898111724,3.88,177.49,177.39,2.821]
[1734898112338,3.88,177.49,177.38,21.98969092]
[1734898113027,2.8203,177.44,177.39,2.821]
[1734898113230,3.88,177.49,177.37,3.88]
[1734898113431,2.82,177.46,177.37,6.7012]
[1734898113636,1.6091,177.48,177.37,3.88]
[1734898113936,1.6091,177.48,177.35,21.98969092]
[1734898114536,2.8206,177.42,177.37,2.8212]
[1734898114940,3.88,177.43,177.31,5.1806]
[1734898117034,3.88,177.43,177.32,21.98969092]
[1734898117437,1.6068,177.46,177.32,21.98969092]
[1734898117838,1.6068,177.46,177.34,2.8216]
[1734898117839,2.8208,177.4,177.34,2.8216]
[1734898118146,21.98969092,177.45,177.31,9.0606]
[1734898119240,1.6212,177.47,177.32,21.98969092]
[1734898119443,2.8206,177.42,177.36,2.8213]
[1734898120644,1.6212,177.47,177.32,21.98969092]
[1734898120844,1.6212,177.47,177.39,2.821]
[1734898121046,1.6212,177.47,177.32,21.98969092]
[1734898121446,21.98969092,177.45,177.31,9.0606]
[1734898121843,2.8211,177.39,177.33,2.8218]
[1734898122152,2.8211,177.39,177.31,9.0606]
[1734898122451,1.6454,177.46,177.31,31.05029092]
[1734898125051,1.6454,177.46,177.32,4.14]
[1734898125350,21.98969092,177.44,177.31,8.0028]
[1734898125651,21.98969092,177.44,177.31,5.1806]
[1734898125853,2.8218,177.34,177.3,2.8224]
[1734898126045,2.8218,177.34,177.28,21.98969092]
[1734898126553,2.8216,177.35,177.28,21.98969092]
[1734898126749,4.14,177.39,177.28,21.98969092]
[1734898127143,2.8215,177.36,177.31,2.8222]
[1734898127347,4.14,177.39,177.31,2.8222]
[1734898129651,2.8216,177.36,177.31,2.8222]
[1734898130053,2.8216,177.36,177.32,2.8221]
[1734898130553,26.12969092,177.44,177.28,21.98969092]
[1734898130858,21.98969092,177.44,177.28,21.98969092]
[1734898131058,5.87873903,177.46,177.31,21.98969092]
[1734898131245,1.6454,177.46,177.32,1.6353]
[1734898131450,1.6454,177.46,177.33,4.14]
[1734898131847,1.6091,177.48,177.34,25.34339092]
[1734898132055,22.65224078,177.51,177.37,21.98969092]
[1734898132448,4.14,177.52,177.37,21.98969092]
[1734898132855,3.3715,177.53,177.4,21.98969092]
[1734898133150,3.3715,177.53,177.41,5.8966]
[1734898133558,2.8196,177.48,177.41,5.8966]
[1734898133756,3.3715,177.53,177.41,4.14]
[1734898134956,2.8197,177.48,177.43,2.8203]
[1734898135658,2.8199,177.46,177.37,26.12969092]
[1734898135853,4.14,177.49,177.37,21.98969092]
[1734898136158,4.14,177.49,177.39,2.821]
[1734898136652,2.8203,177.44,177.39,2.821]
[1734898136955,8.37210227,177.49,177.38,2.8212]
[1734898137162,19.14798846,177.49,177.38,2.8212]
[1734898137456,2.8206,177.42,177.38,2.8212]
[1734898137657,4.23210227,177.48,177.37,2.8213]
[1734898137853,21.98969092,177.47,177.37,2.8213]
[1734898138159,23.65779092,177.47,177.37,2.8213]
[1734898138360,36.60743691,177.47,177.37,2.8213]
[1734898138565,2.8207,177.42,177.37,2.8213]
[1734898139265,4.23210227,177.46,177.37,2.8213]
[1734898139467,2.8207,177.41,177.37,2.8212]
[1734898139867,23.65779092,177.47,177.33,4.14]
[1734898140369,1.6681,177.47,177.33,4.14]
[1734898140766,2.8203,177.44,177.37,2.8213]
[1734898140968,1.6681,177.47,177.33,4.14]
[1734898141164,23.65779092,177.47,177.31,5.1345]
[1734898141563,21.98969092,177.44,177.23,93.64037177]
[1734898141767,2.8222,177.32,177.28,2.8227]
[1734898141969,2.8222,177.32,177.25,1.6229]
[1734898142273,2.822,177.33,177.28,2.8226]
[1734898142459,4.14,177.36,177.25,1.6229]
[1734898142963,2.8219,177.34,177.29,2.8225]
[1734898143763,2.822,177.33,177.29,2.8225]
[1734898144474,2.822,177.33,177.28,2.8227]
[1734898144771,4.14,177.36,177.25,1.6229]
[1734898145470,2.8224,177.3,177.25,2.8231]
[1734898145765,2.8224,177.3,177.24,1.6077]
[1734898145971,2.8224,177.31,177.26,2.8231]
[1734898146471,4.14,177.36,177.24,1.6077]
[1734898147066,2.8222,177.32,177.27,2.8228]
[1734898148371,4.14,177.36,177.27,2.8228]
[1734898148565,2.8223,177.31,177.27,2.8228]
[1734898149672,1.6283,177.4,177.24,1.6077]
[1734898150491,2.8215,177.36,177.31,2.8221]
[1734898150770,26.12969092,177.41,177.28,4.14]
[1734898150967,2.8213,177.37,177.33,2.8219]
[1734898151173,3.4045,177.43,177.29,1.7743]
[1734898151467,26.00969092,177.47,177.32,21.98969092]
[1734898151673,2.8203,177.44,177.33,3.3559]
[1734898151868,2.8203,177.44,177.34,4.02]
[1734898152266,4.02,177.47,177.35,21.98969092]
[1734898152467,25.39749092,177.5,177.35,21.98969092]
[1734898153163,25.39749092,177.5,177.35,4.02]
[1734898153164,21.98969092,177.47,177.35,4.02]
[1734898153378,21.98969092,177.47,177.37,2.8212]
[1734898153379,2.8205,177.43,177.37,2.8212]
[1734898153573,21.98969092,177.47,177.34,4.02]
[1734898154073,2.821,177.39,177.34,6.8418]
[1734898154274,2.821,177.39,177.34,4.02]
[1734898154669,2.8208,177.41,177.35,2.8216]
[1734898154865,2.8208,177.41,177.34,4.02]
[1734898155073,4.02,177.44,177.34,4.02]
[1734898155774,4.02,177.44,177.35,2.8216]
[1734898156172,26.00969092,177.44,177.33,1.6114]
[1734898156474,2.8214,177.37,177.32,2.822]
[1734898156772,1.6412,177.43,177.29,27.78399092]
[1734898157073,2.821,177.39,177.29,27.78399092]
[1734898157775,1.6412,177.43,177.29,27.78399092]
[1734898158372,2.8208,177.41,177.29,27.78399092]
[1734898158674,10.37500236,177.43,177.29,1.7743]
[1734898158870,14.60828098,177.43,177.29,1.7743]
[1734898159071,25.4025171,177.43,177.29,1.7743]
[1734898159287,14.60828098,177.43,177.29,1.7743]
[1734898159474,1.6412,177.43,177.29,1.7743]
[1734898159672,1.6412,177.43,177.29,23.76399092]
[1734898160276,1.6412,177.43,177.3,4.02]
[1734898160975,2.8209,177.4,177.35,2.8216]
[1734898161372,2.8211,177.39,177.34,2.8217]
[1734898162077,1.6412,177.43,177.29,1.7743]
[1734898162271,4.02,177.39,177.29,1.7743]
[1734898162577,2.8215,177.36,177.32,2.8221]
[1734898162772,4.02,177.39,177.29,1.7743]
[1734898163668,2.8212,177.38,177.32,2.8221]
[1734898163872,2.8212,177.38,177.29,1.7743]
[1734898164270,2.8212,177.38,177.33,2.8219]
[1734898164470,4.02,177.39,177.29,1.7743]
[1734898164978,4.02,177.39,177.23,58.68]
[1734898165167,4.02,177.39,177.25,21.98969092]
[1734898165371,4.02,177.39,177.26,1.6164]
[1734898165980,2.8215,177.36,177.32,2.822]
[1734898166177,4.02,177.39,177.27,4.02]
[1734898166578,2.8212,177.38,177.33,2.8218]
[1734898167072,4.02,177.39,177.28,3.3529]
[1734898167981,4.02,177.39,177.25,4.02]
[1734898169281,4.02,177.39,177.26,1.607]
[1734898170483,2.8217,177.35,177.26,1.607]
[1734898170886,2.8219,177.34,177.3,2.8224]
[1734898171093,4.02,177.39,177.26,1.607]
[1734898171685,2.8218,177.35,177.3,2.8223]
[1734898171981,21.98969092,177.38,177.21,1.6815]
[1734898172186,0.90744544,177.37,177.21,1.6815]
[1734898172781,21.98969092,177.38,177.21,1.6815]
[1734898172994,2.8226,177.3,177.26,2.8231]
[1734898175090,2.8227,177.29,177.25,2.8232]
[1734898175589,2.8228,177.28,177.21,1.6815]
[1734898176288,1.7417,177.32,177.26,2.8231]
[1734898176485,4.02,177.33,177.21,23.67119092]
[1734898176689,1.631,177.34,177.21,23.67119092]
[1734898176889,2.8225,177.3,177.21,23.67119092]
[1734898177389,2.8224,177.31,177.27,2.8228]
[1734898177583,1.631,177.34,177.21,23.67119092]
[1734898177983,2.822,177.33,177.29,2.8225]
[1734898178491,4.02,177.35,177.24,4.02]
[1734898178687,2.8221,177.33,177.29,2.8226]
[1734898179187,26.00969092,177.35,177.21,1.6815]
[1734898179693,4.23554993,177.34,177.24,2.8233]
[1734898179895,10.79363886,177.34,177.21,23.67119092]
[1734898180190,4.02,177.35,177.21,23.67119092]
[1734898180382,2.8224,177.31,177.21,23.67119092]
[1734898180783,2.8224,177.31,177.21,1.6815]